[Event "*** SCC Grand Prix: Titled Tuesday Blitz"]
[Site "Chess.com"]
[Date "2020.10.06"]
[Round "4"]
[White "IANOV0007"]
[Black "verdest"]
[Result "0-1"]
[WhiteElo "2435"]
[BlackElo "2662"]
[TimeControl "180+1"]
[EndTime "10:40:46 PDT"]
[Termination "verdest won by resignation"]

1. Nf3 {[%clk 0:03:00.9]} 1... Nf6 {[%clk 0:02:59.6]} 2. g3 {[%clk 0:03:00.5]}
2... d5 {[%clk 0:02:59.3]} 3. Bg2 {[%clk 0:02:59.5]} 3... c6 {[%clk 0:02:59.8]}
4. O-O {[%clk 0:02:59]} 4... Bg4 {[%clk 0:03:00.3]} 5. d3 {[%clk 0:02:58.7]}
5... Nbd7 {[%clk 0:03:00.1]} 6. Nbd2 {[%clk 0:02:58.8]} 6... e5 {[%clk
0:02:59.5]} 7. e4 {[%clk 0:02:58.9]} 7... Bd6 {[%clk 0:02:58.3]} 8. Qe1 {[%clk
0:02:57.8]} 8... O-O {[%clk 0:02:57.8]} 9. h3 {[%clk 0:02:57.4]} 9... Bh5 {[%clk
0:02:57.5]} 10. Nh4 {[%clk 0:02:57.3]} 10... Re8 {[%clk 0:02:57]} 11. Nf5 {[%clk
0:02:57]} 11... Bf8 {[%clk 0:02:56.8]} 12. Nf3 {[%clk 0:02:56.5]} 12... a5
{[%clk 0:02:52.8]} 13. Bg5 {[%clk 0:02:55.9]} 13... Qb6 {[%clk 0:02:49]} 14. Rb1
{[%clk 0:02:50.8]} 14... a4 {[%clk 0:02:48]} 15. a3 {[%clk 0:02:49.6]} 15... h6
{[%clk 0:02:24.5]} 16. Be3 {[%clk 0:02:39.2]} 16... d4 {[%clk 0:02:24]} 17. Bd2
{[%clk 0:02:37.6]} 17... Bg6 {[%clk 0:02:20]} 18. N3h4 {[%clk 0:02:35.8]} 18...
Bh7 {[%clk 0:02:19.2]} 19. Qd1 {[%clk 0:02:28.1]} 19... Nc5 {[%clk 0:02:15]} 20.
Kh1 {[%clk 0:02:23.7]} 20... Ne6 {[%clk 0:02:10.6]} 21. Qc1 {[%clk 0:02:12.8]}
21... Qd8 {[%clk 0:01:56.9]} 22. f4 {[%clk 0:02:09.6]} 22... exf4 {[%clk
0:01:54.6]} 23. gxf4 {[%clk 0:02:07.3]} 23... Nh5 {[%clk 0:01:51.3]} 24. Qd1
{[%clk 0:01:55.7]} 24... g6 {[%clk 0:01:41.3]} 25. Kh2 {[%clk 0:01:46.2]} 25...
Kh8 {[%clk 0:01:32.3]} 26. Qf3 {[%clk 0:01:38]} 26... Nhxf4 {[%clk 0:01:10.6]}
27. Bxf4 {[%clk 0:01:30.7]} 27... gxf5 {[%clk 0:01:01.2]} 28. Nxf5 {[%clk
0:01:28.7]} 28... Bxf5 {[%clk 0:00:58.6]} 29. Be5+ {[%clk 0:01:25.5]} 29... f6
{[%clk 0:00:57.3]} 30. Bg3 {[%clk 0:01:15.4]} 30... Bh7 {[%clk 0:00:54.3]} 31.
h4 {[%clk 0:01:11.1]} 31... Bd6 {[%clk 0:00:50.5]} 32. Qxf6+ {[%clk 0:01:07.3]}
32... Qxf6 {[%clk 0:00:50.2]} 33. Rxf6 {[%clk 0:01:07.3]} 33... Bxg3+ {[%clk
0:00:50.3]} 34. Kxg3 {[%clk 0:01:07.5]} 34... Rg8+ {[%clk 0:00:43]} 35. Kh2
{[%clk 0:01:06.6]} 35... Ng7 {[%clk 0:00:40.5]} 36. Rxh6 {[%clk 0:01:05.8]}
36... Raf8 {[%clk 0:00:37.9]} 37. Kg1 {[%clk 0:01:01.7]} 37... Rf4 {[%clk
0:00:35.8]} 38. e5 {[%clk 0:01:00.4]} 38... Rg4 {[%clk 0:00:33.8]} 39. Kh2
{[%clk 0:00:59.2]} 39... Rxg2+ {[%clk 0:00:32.8]} 40. Kxg2 {[%clk 0:00:58.8]}
40... Nf5+ {[%clk 0:00:33]} 41. Kf3 {[%clk 0:00:58.6]} 41... Nxh6 {[%clk
0:00:33]} 42. Re1 {[%clk 0:00:56.9]} 42... Rf8+ {[%clk 0:00:31.5]} 43. Kg2
{[%clk 0:00:54.4]} 43... Re8 {[%clk 0:00:30.3]} 44. Kg3 {[%clk 0:00:52.8]} 44...
Nf5+ {[%clk 0:00:29.4]} 45. Kf4 {[%clk 0:00:52.4]} 45... Nxh4 {[%clk 0:00:29.5]}
46. Rg1 {[%clk 0:00:50.7]} 46... Ng6+ {[%clk 0:00:28.6]} 47. Kg5 {[%clk
0:00:50.8]} 47... Nxe5 {[%clk 0:00:26.9]} 48. Kf6 {[%clk 0:00:48.5]} 48... Nf3
{[%clk 0:00:25]} 49. Rg3 {[%clk 0:00:47.1]} 49... Re1 {[%clk 0:00:22.3]} 50.
Rxf3 {[%clk 0:00:44.7]} 50... Kg8 {[%clk 0:00:17]} 51. Rf4 {[%clk 0:00:40.4]}
51... c5 {[%clk 0:00:14.4]} 52. Rg4+ {[%clk 0:00:39.1]} 52... Kf8 {[%clk
0:00:14.2]} 53. Rg5 {[%clk 0:00:39]} 53... Rf1+ {[%clk 0:00:13.1]} 54. Ke6
{[%clk 0:00:38.5]} 54... Bg8+ {[%clk 0:00:09.9]} 55. Kd6 {[%clk 0:00:38.2]}
55... b6 {[%clk 0:00:10.1]} 56. Kc7 {[%clk 0:00:36.4]} 56... Rf6 {[%clk
0:00:09.6]} 57. Re5 {[%clk 0:00:35]} 57... Ba2 {[%clk 0:00:09.1]} 58. Kd8 {[%clk
0:00:33]} 58... Bb1 {[%clk 0:00:08.3]} 59. Re8+ {[%clk 0:00:32]} 59... Kf7
{[%clk 0:00:08.4]} 60. Re2 {[%clk 0:00:31.3]} 60... Re6 {[%clk 0:00:07.5]} 61.
Rf2+ {[%clk 0:00:29.7]} 61... Kg6 {[%clk 0:00:07.6]} 62. Kc7 {[%clk 0:00:29.2]}
62... Rf6 {[%clk 0:00:07.3]} 63. Rg2+ {[%clk 0:00:28.4]} 63... Kf7 {[%clk
0:00:05.8]} 64. Kb7 {[%clk 0:00:28.1]} 64... b5 {[%clk 0:00:03.6]} 65. Re2
{[%clk 0:00:24.9]} 65... c4 {[%clk 0:00:04.5]} 66. Rd2 {[%clk 0:00:23.9]} 66...
c3 {[%clk 0:00:04.3]} 67. bxc3 {[%clk 0:00:23.4]} 67... dxc3 {[%clk 0:00:05.2]}
68. Rh2 {[%clk 0:00:22.3]} 68... b4 {[%clk 0:00:05.6]} 69. axb4 {[%clk
0:00:21.5]} 69... a3 {[%clk 0:00:06.1]} 70. Kc8 {[%clk 0:00:19.3]} 70... a2
{[%clk 0:00:06.4]} 71. Rh7+ {[%clk 0:00:19]} 71... Kg6 {[%clk 0:00:06.1]} 72.
Ra7 {[%clk 0:00:18.5]} 72... Rb6 {[%clk 0:00:05.3]} 73. Kc7 {[%clk 0:00:16.7]}
73... Rxb4 {[%clk 0:00:05.3]} 74. Kc6 {[%clk 0:00:16.8]} 74... Rb2 {[%clk
0:00:05.4]} 75. Kc5 {[%clk 0:00:16.7]} 75... Bxc2 {[%clk 0:00:05.5]} 76. d4
{[%clk 0:00:16.8]} 76... Bb3 {[%clk 0:00:05.6]} 77. d5 {[%clk 0:00:15.7]} 77...
Rb1 {[%clk 0:00:06]} 78. d6 {[%clk 0:00:15.3]} 78... a1=Q {[%clk 0:00:05.9]} 79.
Rxa1 {[%clk 0:00:14.3]} 79... Rxa1 {[%clk 0:00:06.8]} 80. d7 {[%clk 0:00:14.4]}
80... Rd1 {[%clk 0:00:07.3]} 0-1

[Event "*** SCC Grand Prix: Titled Tuesday Blitz"]
[Site "Chess.com"]
[Date "2020.10.06"]
[Round "4"]
[White "reutik"]
[Black "TheMagnet"]
[Result "0-1"]
[WhiteElo "2195"]
[BlackElo "2586"]
[TimeControl "180+1"]
[EndTime "10:40:47 PDT"]
[Termination "TheMagnet won by checkmate"]

1. d4 {[%clk 0:03:00.9]} 1... Nf6 {[%clk 0:02:53.9]} 2. c4 {[%clk 0:03:00.9]}
2... c5 {[%clk 0:02:54.3]} 3. d5 {[%clk 0:03:00.8]} 3... e6 {[%clk 0:02:54.9]}
4. Nc3 {[%clk 0:03:00.6]} 4... exd5 {[%clk 0:02:55.5]} 5. cxd5 {[%clk
0:03:01.1]} 5... d6 {[%clk 0:02:56.2]} 6. Nf3 {[%clk 0:02:59.4]} 6... g6 {[%clk
0:02:53.8]} 7. h3 {[%clk 0:02:59.1]} 7... Bg7 {[%clk 0:02:53]} 8. Bf4 {[%clk
0:02:59.3]} 8... a6 {[%clk 0:02:52.8]} 9. a4 {[%clk 0:02:58.6]} 9... O-O {[%clk
0:02:52.5]} 10. e3 {[%clk 0:02:58.8]} 10... Qe7 {[%clk 0:02:52.5]} 11. Nd2
{[%clk 0:02:56.7]} 11... Ne8 {[%clk 0:02:49.8]} 12. Be2 {[%clk 0:02:51.4]} 12...
Nd7 {[%clk 0:02:49.1]} 13. O-O {[%clk 0:02:49.6]} 13... Rb8 {[%clk 0:02:44.9]}
14. a5 {[%clk 0:02:46.3]} 14... f5 {[%clk 0:02:25.9]} 15. Nc4 {[%clk 0:02:33.2]}
15... Ne5 {[%clk 0:02:25.4]} 16. Na4 {[%clk 0:02:21.1]} 16... Nc7 {[%clk
0:02:17]} 17. Nab6 {[%clk 0:02:18.8]} 17... Nb5 {[%clk 0:01:54.8]} 18. Qd2
{[%clk 0:02:08.7]} 18... Nxc4 {[%clk 0:01:45.5]} 19. Nxc4 {[%clk 0:02:05.2]}
19... Bd7 {[%clk 0:01:40.5]} 20. Rfe1 {[%clk 0:02:02.4]} 20... Rbd8 {[%clk
0:01:36.8]} 21. Bd3 {[%clk 0:01:53.9]} 21... Qf6 {[%clk 0:01:32.6]} 22. Rab1
{[%clk 0:01:50.1]} 22... g5 {[%clk 0:01:19.6]} 23. Bh2 {[%clk 0:01:49.9]} 23...
f4 {[%clk 0:01:16.6]} 24. Nb6 {[%clk 0:01:47.3]} 24... fxe3 {[%clk 0:01:06.1]}
25. fxe3 {[%clk 0:01:47]} 25... Bf5 {[%clk 0:01:00.5]} 26. Rf1 {[%clk 0:01:45]}
26... Qg6 {[%clk 0:00:56.4]} 27. Bxf5 {[%clk 0:01:44.7]} 27... Rxf5 {[%clk
0:00:57.3]} 28. Rxf5 {[%clk 0:01:44.1]} 28... Qxf5 {[%clk 0:00:58.2]} 29. Rf1
{[%clk 0:01:43.6]} 29... Qe4 {[%clk 0:00:56.7]} 30. Qf2 {[%clk 0:01:38.2]} 30...
Rf8 {[%clk 0:00:56.4]} 31. Qg3 {[%clk 0:01:31.5]} 31... Rxf1+ {[%clk 0:00:52.7]}
32. Kxf1 {[%clk 0:01:30.2]} 32... Qb1+ {[%clk 0:00:52.9]} 33. Kf2 {[%clk
0:01:28.3]} 33... Qxb2+ {[%clk 0:00:51.3]} 34. Kf3 {[%clk 0:01:23.8]} 34... Qf6+
{[%clk 0:00:50.8]} 35. Ke2 {[%clk 0:01:20.4]} 35... Qf5 {[%clk 0:00:44.2]} 36.
Qg4 {[%clk 0:01:14.9]} 36... Qxg4+ {[%clk 0:00:38.1]} 37. hxg4 {[%clk
0:01:14.5]} 37... Bf8 {[%clk 0:00:30]} 38. Kd3 {[%clk 0:01:12.9]} 38... Kf7
{[%clk 0:00:29.8]} 39. Nc4 {[%clk 0:01:08.9]} 39... Ke8 {[%clk 0:00:28.6]} 40.
Bg3 {[%clk 0:01:07.2]} 40... Kd7 {[%clk 0:00:28.5]} 41. Nb6+ {[%clk 0:01:07.3]}
41... Kc7 {[%clk 0:00:28.5]} 42. Nc4 {[%clk 0:01:07.5]} 42... Bg7 {[%clk
0:00:25.5]} 43. Bh2 {[%clk 0:01:06.5]} 43... Bf6 {[%clk 0:00:25.4]} 44. Bg3
{[%clk 0:01:06.3]} 44... Kd7 {[%clk 0:00:25.1]} 45. Be1 {[%clk 0:01:03.6]} 45...
Bd8 {[%clk 0:00:24.8]} 46. Bd2 {[%clk 0:01:03.1]} 46... Ke7 {[%clk 0:00:25]} 47.
Be1 {[%clk 0:01:02.2]} 47... Bc7 {[%clk 0:00:25.5]} 48. Bd2 {[%clk 0:01:02.2]}
48... Kf7 {[%clk 0:00:26.1]} 49. Be1 {[%clk 0:01:01.9]} 49... Kg6 {[%clk
0:00:26.6]} 50. Ke4 {[%clk 0:01:00.3]} 50... Bd8 {[%clk 0:00:25]} 51. Bd2 {[%clk
0:00:58.7]} 51... Be7 {[%clk 0:00:25.1]} 52. Kf3 {[%clk 0:00:57.2]} 52... Bd8
{[%clk 0:00:24.9]} 53. Ke4 {[%clk 0:00:57.4]} 53... Be7 {[%clk 0:00:24.4]} 54.
Kf3 {[%clk 0:00:57.6]} 54... Bf6 {[%clk 0:00:25]} 55. Ke4 {[%clk 0:00:57.3]}
55... Bc3 {[%clk 0:00:25.3]} 56. Bc1 {[%clk 0:00:54.2]} 56... Be1 {[%clk
0:00:22]} 57. Bb2 {[%clk 0:00:50.7]} 57... Bc3 {[%clk 0:00:19.4]} 58. Bc1 {[%clk
0:00:50.8]} 58... h5 {[%clk 0:00:19.7]} 59. gxh5+ {[%clk 0:00:49.6]} 59... Kxh5
{[%clk 0:00:20.6]} 60. Kf5 {[%clk 0:00:45.7]} 60... g4 {[%clk 0:00:20.8]} 61. e4
{[%clk 0:00:44.2]} 61... Nd4+ {[%clk 0:00:19.2]} 62. Kf6 {[%clk 0:00:39.9]}
62... Nb3+ {[%clk 0:00:19.4]} 63. Ke7 {[%clk 0:00:39.7]} 63... Nxc1 {[%clk
0:00:15]} 64. Nxd6 {[%clk 0:00:39.9]} 64... Nd3 {[%clk 0:00:14.9]} 65. Nxb7
{[%clk 0:00:38.2]} 65... c4 {[%clk 0:00:15.4]} 66. d6 {[%clk 0:00:32]} 66... Bb4
{[%clk 0:00:15.6]} 67. Ke6 {[%clk 0:00:29.1]} 67... Bxd6 {[%clk 0:00:14.3]} 68.
Nxd6 {[%clk 0:00:28.4]} 68... c3 {[%clk 0:00:14.6]} 69. Nf5 {[%clk 0:00:28.3]}
69... c2 {[%clk 0:00:14.4]} 70. Ng3+ {[%clk 0:00:28.5]} 70... Kh6 {[%clk
0:00:14.6]} 71. Ne2 {[%clk 0:00:28.9]} 71... Nf4+ {[%clk 0:00:12.6]} 72. Nxf4
{[%clk 0:00:27.9]} 72... c1=Q {[%clk 0:00:13.2]} 73. Nd5 {[%clk 0:00:27.4]}
73... Qc5 {[%clk 0:00:12.2]} 74. e5 {[%clk 0:00:27]} 74... Qxa5 {[%clk
0:00:12.3]} 75. Nf6 {[%clk 0:00:26.7]} 75... Qb6+ {[%clk 0:00:12.6]} 76. Kf5
{[%clk 0:00:27.1]} 76... Qb1+ {[%clk 0:00:12.7]} 77. Kxg4 {[%clk 0:00:26.3]}
77... Qe1 {[%clk 0:00:11.5]} 78. Kf5 {[%clk 0:00:25.6]} 78... Kg7 {[%clk
0:00:11.9]} 79. g4 {[%clk 0:00:23.9]} 79... a5 {[%clk 0:00:11.9]} 80. g5 {[%clk
0:00:22.1]} 80... a4 {[%clk 0:00:12.3]} 81. e6 {[%clk 0:00:20.6]} 81... a3
{[%clk 0:00:12.3]} 82. Nd5 {[%clk 0:00:20.7]} 82... a2 {[%clk 0:00:12.2]} 83. e7
{[%clk 0:00:21]} 83... a1=Q {[%clk 0:00:12.5]} 84. Nf4 {[%clk 0:00:19.4]} 84...
Qae5+ {[%clk 0:00:12.1]} 85. Kg4 {[%clk 0:00:19]} 85... Qxe7 {[%clk 0:00:12]}
86. Nh5+ {[%clk 0:00:18.3]} 86... Kh8 {[%clk 0:00:12.2]} 87. Nf6 {[%clk
0:00:17.2]} 87... Q1e2+ {[%clk 0:00:12.1]} 88. Kf5 {[%clk 0:00:16.5]} 88...
Q7e6+ {[%clk 0:00:11.5]} 89. Kg6 {[%clk 0:00:16.7]} 89... Qc2+ {[%clk
0:00:11.6]} 90. Kh6 {[%clk 0:00:16.7]} 90... Qh7# {[%clk 0:00:11.4]} 0-1

[Event "*** SCC Grand Prix: Titled Tuesday Blitz"]
[Site "Chess.com"]
[Date "2020.10.06"]
[Round "4"]
[White "AndrewMaco"]
[Black "KyrgyzFighter"]
[Result "1-0"]
[WhiteElo "2632"]
[BlackElo "2398"]
[TimeControl "180+1"]
[EndTime "10:40:50 PDT"]
[Termination "AndrewMaco won by checkmate"]

1. e4 {[%clk 0:02:56]} 1... e6 {[%clk 0:02:58.7]} 2. d3 {[%clk 0:02:55.4]} 2...
d5 {[%clk 0:02:58.5]} 3. Nd2 {[%clk 0:02:56.3]} 3... Nf6 {[%clk 0:02:58.7]} 4.
Ngf3 {[%clk 0:02:55.7]} 4... c5 {[%clk 0:02:59]} 5. g3 {[%clk 0:02:55.9]} 5...
g6 {[%clk 0:02:59.4]} 6. Bg2 {[%clk 0:02:55.9]} 6... Bg7 {[%clk 0:03:00]} 7. O-O
{[%clk 0:02:56.4]} 7... O-O {[%clk 0:03:00.6]} 8. Re1 {[%clk 0:02:56.2]} 8...
Nc6 {[%clk 0:03:01.2]} 9. c3 {[%clk 0:02:54.7]} 9... Re8 {[%clk 0:03:01.3]} 10.
e5 {[%clk 0:02:48.8]} 10... Nd7 {[%clk 0:03:00.7]} 11. d4 {[%clk 0:02:49.2]}
11... f6 {[%clk 0:02:52.4]} 12. exf6 {[%clk 0:02:44.3]} 12... Qxf6 {[%clk
0:02:51.8]} 13. Nb3 {[%clk 0:02:43.5]} 13... c4 {[%clk 0:02:31.1]} 14. Nbd2
{[%clk 0:02:24.8]} 14... g5 {[%clk 0:02:07.9]} 15. Nf1 {[%clk 0:02:21.7]} 15...
g4 {[%clk 0:01:52.9]} 16. Nh4 {[%clk 0:02:21.2]} 16... h5 {[%clk 0:01:45.4]} 17.
h3 {[%clk 0:02:20.1]} 17... Rf8 {[%clk 0:01:43.4]} 18. Be3 {[%clk 0:02:16.2]}
18... gxh3 {[%clk 0:01:32.3]} 19. Bxh3 {[%clk 0:02:15.9]} 19... e5 {[%clk
0:01:27.1]} 20. dxe5 {[%clk 0:01:58.9]} 20... Ndxe5 {[%clk 0:01:26]} 21. Bxc8
{[%clk 0:01:55.1]} 21... Raxc8 {[%clk 0:01:24.9]} 22. Qxh5 {[%clk 0:01:54.2]}
22... Nd3 {[%clk 0:01:22.5]} 23. Re2 {[%clk 0:01:50.5]} 23... Nce5 {[%clk
0:01:21.1]} 24. Bd4 {[%clk 0:01:46.4]} 24... Rce8 {[%clk 0:01:00.1]} 25. f4
{[%clk 0:01:44.8]} 25... Qe6 {[%clk 0:00:40.3]} 26. fxe5 {[%clk 0:01:36.3]}
26... Qh3 {[%clk 0:00:36.1]} 27. Rh2 {[%clk 0:01:30.3]} 27... Qe6 {[%clk
0:00:24.7]} 28. Ng6 {[%clk 0:01:27.7]} 28... Rf5 {[%clk 0:00:24.8]} 29. Qh7+
{[%clk 0:01:20.4]} 29... Kf7 {[%clk 0:00:25.1]} 30. Nh4 {[%clk 0:01:18.5]} 30...
Rg5 {[%clk 0:00:23]} 31. Nf3 {[%clk 0:00:43.5]} 31... Rf5 {[%clk 0:00:23]} 32.
N1d2 {[%clk 0:00:40.8]} 32... Rh8 {[%clk 0:00:21.7]} 33. Qxh8 {[%clk 0:00:41.1]}
33... Bxh8 {[%clk 0:00:21.9]} 34. Rxh8 {[%clk 0:00:42]} 34... Qg6 {[%clk
0:00:21.4]} 35. e6+ {[%clk 0:00:39]} 35... Ke7 {[%clk 0:00:17.1]} 36. Kh2 {[%clk
0:00:35.8]} 36... Rh5+ {[%clk 0:00:16.4]} 37. Rxh5 {[%clk 0:00:35.4]} 37...
Qxh5+ {[%clk 0:00:17.3]} 38. Kg2 {[%clk 0:00:36]} 38... Qg4 {[%clk 0:00:17.5]}
39. Rh1 {[%clk 0:00:30.2]} 39... Nf4+ {[%clk 0:00:17]} 40. Kf2 {[%clk
0:00:30.3]} 40... Nh3+ {[%clk 0:00:17.4]} 41. Ke2 {[%clk 0:00:28.3]} 41... Qxg3
{[%clk 0:00:16.8]} 42. Re1 {[%clk 0:00:26.4]} 42... Qg2+ {[%clk 0:00:16.6]} 43.
Kd1 {[%clk 0:00:26]} 43... Nf4 {[%clk 0:00:17]} 44. Bc5+ {[%clk 0:00:25.2]}
44... Ke8 {[%clk 0:00:16.3]} 45. Ne5 {[%clk 0:00:20.9]} 45... Nxe6 {[%clk
0:00:13.2]} 46. Nexc4 {[%clk 0:00:19]} 46... dxc4 {[%clk 0:00:12]} 47. Rxe6+
{[%clk 0:00:19.1]} 47... Kd7 {[%clk 0:00:12.5]} 48. Re2 {[%clk 0:00:19.4]} 48...
Qh1+ {[%clk 0:00:11.6]} 49. Re1 {[%clk 0:00:19]} 49... Qh5+ {[%clk 0:00:11]} 50.
Kc1 {[%clk 0:00:19.3]} 50... Qxc5 {[%clk 0:00:11.6]} 51. Rd1 {[%clk 0:00:19.8]}
51... Kc7 {[%clk 0:00:11.2]} 52. Kc2 {[%clk 0:00:19.3]} 52... b5 {[%clk
0:00:11.5]} 53. Re1 {[%clk 0:00:19.6]} 53... a5 {[%clk 0:00:11.6]} 54. a3 {[%clk
0:00:20.2]} 54... Qf5+ {[%clk 0:00:11.4]} 55. Kc1 {[%clk 0:00:20.4]} 55... Qf2
{[%clk 0:00:12]} 56. Rf1 {[%clk 0:00:20.4]} 56... Qe2 {[%clk 0:00:11.8]} 57. Rh1
{[%clk 0:00:20.4]} 57... Qd3 {[%clk 0:00:11.3]} 58. Rf1 {[%clk 0:00:19.6]} 58...
b4 {[%clk 0:00:11.5]} 59. axb4 {[%clk 0:00:20.5]} 59... axb4 {[%clk 0:00:11.9]}
60. Rf3 {[%clk 0:00:20.9]} 60... Qe2 {[%clk 0:00:10.6]} 61. cxb4 {[%clk
0:00:21.1]} 61... Kb6 {[%clk 0:00:10.1]} 62. Rc3 {[%clk 0:00:21.1]} 62... Kb5
{[%clk 0:00:10.1]} 63. Rxc4 {[%clk 0:00:16.8]} 63... Qe1+ {[%clk 0:00:10.3]} 64.
Kc2 {[%clk 0:00:17]} 64... Qf2 {[%clk 0:00:10]} 65. Re4 {[%clk 0:00:12.3]} 65...
Qf5 {[%clk 0:00:09.5]} 66. Kc3 {[%clk 0:00:10.1]} 66... Qh3+ {[%clk 0:00:08]}
67. Kc2 {[%clk 0:00:09]} 67... Qf5 {[%clk 0:00:08.5]} 68. Kd3 {[%clk 0:00:06.9]}
68... Qd5+ {[%clk 0:00:08.1]} 69. Kc3 {[%clk 0:00:06.9]} 69... Qc6+ {[%clk
0:00:07.8]} 70. Rc4 {[%clk 0:00:06.3]} 70... Qf6+ {[%clk 0:00:07.6]} 71. Kb3
{[%clk 0:00:06]} 71... Qg5 {[%clk 0:00:08.2]} 72. Rc5+ {[%clk 0:00:05.4]} 72...
Qxc5 {[%clk 0:00:08.1]} 73. bxc5 {[%clk 0:00:06.3]} 73... Kxc5 {[%clk 0:00:09]}
74. Kc3 {[%clk 0:00:07]} 74... Kb5 {[%clk 0:00:09.5]} 75. b4 {[%clk 0:00:07.9]}
75... Kc6 {[%clk 0:00:09.9]} 76. Kc4 {[%clk 0:00:08.8]} 76... Kb6 {[%clk
0:00:10.8]} 77. b5 {[%clk 0:00:09.7]} 77... Kc7 {[%clk 0:00:11.1]} 78. Kb4
{[%clk 0:00:10.6]} 78... Kb7 {[%clk 0:00:11.7]} 79. Kc5 {[%clk 0:00:11.1]} 79...
Kc7 {[%clk 0:00:12.2]} 80. b6+ {[%clk 0:00:11.7]} 80... Kb7 {[%clk 0:00:12.8]}
81. Kb5 {[%clk 0:00:12.4]} 81... Kb8 {[%clk 0:00:12.9]} 82. Kc6 {[%clk
0:00:12.9]} 82... Kc8 {[%clk 0:00:13.2]} 83. b7+ {[%clk 0:00:12.9]} 83... Kb8
{[%clk 0:00:13.6]} 84. Nf3 {[%clk 0:00:13.6]} 84... Ka7 {[%clk 0:00:14.2]} 85.
Kc7 {[%clk 0:00:14.3]} 85... Ka6 {[%clk 0:00:15]} 86. b8=Q {[%clk 0:00:15]}
86... Ka5 {[%clk 0:00:15.9]} 87. Qb3 {[%clk 0:00:15.3]} 87... Ka6 {[%clk
0:00:16.3]} 88. Qb6# {[%clk 0:00:15.9]} 1-0

[Event "*** SCC Grand Prix: Titled Tuesday Blitz"]
[Site "Chess.com"]
[Date "2020.10.06"]
[Round "4"]
[White "TimofeevAr"]
[Black "PotapovaM"]
[Result "1-0"]
[WhiteElo "2840"]
[BlackElo "2557"]
[TimeControl "180+1"]
[EndTime "10:40:54 PDT"]
[Termination "TimofeevAr won by resignation"]

1. d4 {[%clk 0:03:00.9]} 1... Nf6 {[%clk 0:02:59.8]} 2. c4 {[%clk 0:02:59.9]}
2... e6 {[%clk 0:03:00.3]} 3. Nc3 {[%clk 0:02:56.1]} 3... Bb4 {[%clk 0:03:00.1]}
4. e3 {[%clk 0:02:55.9]} 4... O-O {[%clk 0:02:56.2]} 5. Bd3 {[%clk 0:02:54.9]}
5... d5 {[%clk 0:02:56.4]} 6. Nf3 {[%clk 0:02:54.7]} 6... dxc4 {[%clk
0:02:56.7]} 7. Bxc4 {[%clk 0:02:54.9]} 7... c5 {[%clk 0:02:57.4]} 8. O-O {[%clk
0:02:54.4]} 8... cxd4 {[%clk 0:02:58]} 9. exd4 {[%clk 0:02:54]} 9... b6 {[%clk
0:02:58.6]} 10. Qe2 {[%clk 0:02:52.9]} 10... Bb7 {[%clk 0:02:55.9]} 11. Rd1
{[%clk 0:02:52.5]} 11... Bxc3 {[%clk 0:02:43.4]} 12. bxc3 {[%clk 0:02:51.2]}
12... Nbd7 {[%clk 0:02:44.1]} 13. Bd3 {[%clk 0:02:45.8]} 13... h6 {[%clk
0:02:39.5]} 14. c4 {[%clk 0:02:45.2]} 14... Qc7 {[%clk 0:02:37.4]} 15. h3 {[%clk
0:02:43.3]} 15... Rfe8 {[%clk 0:02:30.6]} 16. Bb2 {[%clk 0:02:40.1]} 16... Rac8
{[%clk 0:02:27.7]} 17. Re1 {[%clk 0:02:36.8]} 17... Nh5 {[%clk 0:02:05.2]} 18.
Qe3 {[%clk 0:02:34.9]} 18... Nf4 {[%clk 0:01:51.7]} 19. Bf1 {[%clk 0:02:33.8]}
19... Ng6 {[%clk 0:01:45]} 20. Rad1 {[%clk 0:02:24.1]} 20... Nf6 {[%clk
0:01:37.7]} 21. Nh2 {[%clk 0:02:06.8]} 21... Ne4 {[%clk 0:01:15.1]} 22. Rc1
{[%clk 0:01:57.2]} 22... Nd6 {[%clk 0:01:14.3]} 23. Ng4 {[%clk 0:01:53.5]} 23...
Nf5 {[%clk 0:01:13.4]} 24. Qb3 {[%clk 0:01:50.7]} 24... Rcd8 {[%clk 0:00:50.7]}
25. Rcd1 {[%clk 0:01:38.9]} 25... Ngh4 {[%clk 0:00:39.6]} 26. Ne5 {[%clk
0:01:30.4]} 26... f6 {[%clk 0:00:35.8]} 27. Ng4 {[%clk 0:01:28]} 27... h5 {[%clk
0:00:20.2]} 28. Ne3 {[%clk 0:01:26.4]} 28... Nxe3 {[%clk 0:00:20.1]} 29. Qxe3
{[%clk 0:01:24.2]} 29... Nf5 {[%clk 0:00:20.7]} 30. Qe2 {[%clk 0:01:21.4]} 30...
h4 {[%clk 0:00:19.6]} 31. Qg4 {[%clk 0:01:18.5]} 31... Qd6 {[%clk 0:00:09.3]}
32. d5 {[%clk 0:01:17.4]} 32... Nh6 {[%clk 0:00:09.9]} 33. Qxh4 {[%clk
0:01:16.2]} 33... e5 {[%clk 0:00:08.8]} 34. Bd3 {[%clk 0:01:13.2]} 34... Bc8
{[%clk 0:00:08.6]} 35. Qh5 {[%clk 0:01:10.9]} 35... Kf8 {[%clk 0:00:03.3]} 36.
Qg6 {[%clk 0:01:08.7]} 36... f5 {[%clk 0:00:02.8]} 37. Qxd6+ {[%clk 0:01:07.9]}
37... Rxd6 {[%clk 0:00:03.7]} 38. Bxe5 {[%clk 0:01:07.5]} 38... Rdd8 {[%clk
0:00:04.6]} 39. Bc7 {[%clk 0:00:55.6]} 39... Rd7 {[%clk 0:00:04]} 40. Rxe8+
{[%clk 0:00:53]} 40... Kxe8 {[%clk 0:00:04.9]} 41. Re1+ {[%clk 0:00:53.4]} 41...
Kf7 {[%clk 0:00:04.3]} 42. Bf4 {[%clk 0:00:52.9]} 42... Ng8 {[%clk 0:00:04.2]}
43. Bxf5 {[%clk 0:00:52.4]} 43... Rd8 {[%clk 0:00:04.8]} 44. Bd3 {[%clk
0:00:39.7]} 44... Nf6 {[%clk 0:00:04.7]} 45. Bg5 {[%clk 0:00:40]} 45... Bb7
{[%clk 0:00:03.8]} 46. a4 {[%clk 0:00:38.6]} 46... Ba6 {[%clk 0:00:02.9]} 47. a5
{[%clk 0:00:33.5]} 47... bxa5 {[%clk 0:00:02.8]} 48. Ra1 {[%clk 0:00:33.3]}
48... Rd6 {[%clk 0:00:02.5]} 49. Rxa5 {[%clk 0:00:32.1]} 49... Nxd5 {[%clk
0:00:03.1]} 50. cxd5 {[%clk 0:00:23.4]} 50... Bxd3 {[%clk 0:00:02.5]} 51. Rxa7+
{[%clk 0:00:23.7]} 51... Kg6 {[%clk 0:00:02.8]} 52. Bd2 {[%clk 0:00:21.1]} 52...
Rxd5 {[%clk 0:00:03.3]} 53. Bc3 {[%clk 0:00:21.3]} 53... Bf5 {[%clk 0:00:02.3]}
54. Rxg7+ {[%clk 0:00:20.1]} 54... Kh6 {[%clk 0:00:03.2]} 55. Rg3 {[%clk
0:00:19.8]} 55... Rd1+ {[%clk 0:00:03.7]} 56. Kh2 {[%clk 0:00:19.4]} 56... Bg6
{[%clk 0:00:04.6]} 57. Be5 {[%clk 0:00:18.2]} 57... Kh7 {[%clk 0:00:04.7]} 58.
Bf4 {[%clk 0:00:18.4]} 58... Rd7 {[%clk 0:00:05]} 59. Be3 {[%clk 0:00:18.7]}
59... Rf7 {[%clk 0:00:05.4]} 60. Rg4 {[%clk 0:00:18.8]} 60... Rd7 {[%clk
0:00:05.1]} 61. Rf4 {[%clk 0:00:18.8]} 61... Rf7 {[%clk 0:00:05]} 62. Rxf7+
{[%clk 0:00:17.2]} 62... Bxf7 {[%clk 0:00:05.9]} 63. g4 {[%clk 0:00:17.7]} 63...
Kg6 {[%clk 0:00:05.4]} 64. Kg3 {[%clk 0:00:18]} 64... Be6 {[%clk 0:00:05.4]} 65.
f4 {[%clk 0:00:18.3]} 65... Bd7 {[%clk 0:00:06.3]} 66. h4 {[%clk 0:00:17.4]}
66... Bc8 {[%clk 0:00:05.6]} 67. h5+ {[%clk 0:00:17.7]} 67... Kh6 {[%clk
0:00:05.5]} 68. f5+ {[%clk 0:00:17.5]} 68... Kg7 {[%clk 0:00:05.3]} 69. Kf4
{[%clk 0:00:17.9]} 69... Bd7 {[%clk 0:00:05.1]} 70. Kg5 {[%clk 0:00:16]} 70...
Be8 {[%clk 0:00:05.2]} 71. Bd4+ {[%clk 0:00:15.2]} 71... Kh7 {[%clk 0:00:05.5]}
72. Kf6 {[%clk 0:00:13.8]} 72... Kh6 {[%clk 0:00:04.7]} 73. Be3+ {[%clk
0:00:13.4]} 73... Kh7 {[%clk 0:00:04.3]} 74. Bf4 {[%clk 0:00:13.6]} 74... Bb5
{[%clk 0:00:04.2]} 75. g5 {[%clk 0:00:13.5]} 75... Be2 {[%clk 0:00:03.9]} 76.
g6+ {[%clk 0:00:13.9]} 76... Kg8 {[%clk 0:00:04.3]} 77. Kg5 {[%clk 0:00:14.5]}
77... Bc4 {[%clk 0:00:03.8]} 78. h6 {[%clk 0:00:13.9]} 78... Kf8 {[%clk
0:00:03.4]} 79. h7 {[%clk 0:00:14]} 1-0